bitfinex/quotes_BTCUSD_20250903
["timestamp","ask_amount","ask_price","bid_price","bid_amount"]
[1756937220403,0.41234194,112260.0,112250.0,0.34254416]
[1756937220825,0.00034096,112260.0,112250.0,0.34254416]
[1756937221047,0.00256743,112260.0,112250.0,0.34254416]
[1756937221486,0.00034096,112260.0,112250.0,0.34254416]
[1756937221641,0.00256743,112260.0,112250.0,0.34254416]
[1756937221829,0.00462743,112260.0,112250.0,0.34254416]
[1756937222032,0.00256743,112260.0,112250.0,0.34254416]
[1756937223483,0.00256743,112260.0,112250.0,0.41102416]
[1756937228962,0.00462743,112260.0,112250.0,0.41102416]
[1756937229380,0.00256743,112260.0,112250.0,0.41102416]
[1756937229574,0.00034096,112260.0,112250.0,0.41102416]
[1756937231777,0.00034096,112260.0,112250.0,0.49115238]
[1756937232501,0.00034096,112260.0,112250.0,0.33435238]
[1756937232699,0.00034096,112260.0,112250.0,0.49035238]
[1756937233513,0.00034096,112260.0,112250.0,0.90235336]
[1756937233717,0.00034096,112260.0,112250.0,1.01520817]
[1756937234133,0.00034096,112260.0,112250.0,0.60320719]
[1756937234539,0.00034096,112260.0,112250.0,1.01520817]
[1756937235377,0.00034096,112260.0,112250.0,0.60320719]
[1756937235587,0.00034096,112260.0,112250.0,1.01520817]
[1756937236391,0.00034096,112260.0,112250.0,1.05475935]
[1756937238989,0.00034096,112260.0,112250.0,0.97463113]
[1756937240738,0.00034096,112260.0,112250.0,0.97820123]
[1756937240966,0.00034096,112260.0,112250.0,1.37820123]
[1756937241774,0.00034096,112260.0,112250.0,0.96620025]
[1756937241933,0.00034096,112260.0,112250.0,1.37820123]
[1756937242772,0.00034096,112260.0,112250.0,0.96620025]
[1756937242942,0.00034096,112260.0,112250.0,1.37820123]
[1756937243156,0.00034096,112260.0,112250.0,0.96560025]
[1756937243404,0.00034096,112260.0,112250.0,0.81020025]
[1756937243557,0.00034096,112260.0,112250.0,1.11904971]
[1756937243760,0.00034096,112260.0,112250.0,1.27452971]
[1756937244685,0.00034096,112260.0,112250.0,0.96568025]
[1756937244970,0.00034096,112260.0,112250.0,1.27452971]
[1756937245257,0.00034096,112260.0,112250.0,1.27095961]
[1756937246421,0.00034096,112260.0,112250.0,1.11547961]
[1756937246678,0.00034096,112260.0,112250.0,0.96207015]
[1756937247032,0.00034096,112260.0,112250.0,1.27091961]
[1756937248115,0.00034096,112260.0,112250.0,0.96207015]
[1756937248345,0.00034096,112260.0,112250.0,1.27091961]
[1756937248545,0.00034096,112260.0,112250.0,0.96207015]
[1756937248953,0.00034096,112260.0,112250.0,1.27091961]
[1756937250542,0.00034096,112260.0,112250.0,1.11547961]
[1756937250820,0.00034096,112260.0,112250.0,0.96191015]
[1756937251039,0.00034096,112260.0,112250.0,1.27075961]
[1756937252487,0.00034096,112260.0,112250.0,1.27067961]
[1756937252995,0.00034096,112260.0,112250.0,0.80663015]
[1756937253138,0.00034096,112260.0,112250.0,1.27055961]
[1756937253354,0.00034096,112260.0,112250.0,0.96171015]
[1756937253552,0.00034096,112260.0,112250.0,1.11547961]
[1756937253755,0.00034096,112260.0,112250.0,1.27051961]
[1756937253959,0.00242096,112260.0,112250.0,0.88354438]
[1756937254190,0.00242096,112260.0,112250.0,0.95057384]
[1756937254372,0.00034096,112260.0,112250.0,0.95057384]
[1756937254571,0.00034096,112260.0,112250.0,0.64172438]
[1756937254800,0.00034096,112260.0,112250.0,0.95057383]
[1756937259191,0.00034096,112260.0,112250.0,0.64172437]
[1756937259400,0.00034096,112260.0,112250.0,0.95057383]
[1756937260838,0.00034096,112260.0,112250.0,0.64172437]
[1756937261056,0.00034096,112260.0,112250.0,0.95057383]
[1756937262411,0.00034096,112260.0,112250.0,0.8704696]
[1756937266475,0.00235096,112260.0,112250.0,0.69449078]
[1756937266685,0.62536635,112260.0,112250.0,0.32914265]
[1756937266863,0.62313988,112260.0,112250.0,0.40356415]
[1756937267107,0.80129772,112260.0,112250.0,0.48378265]
[1756937267318,0.80129772,112260.0,112250.0,0.40356415]
[1756937267531,0.62313988,112260.0,112250.0,0.40356415]
[1756937267742,0.00235096,112260.0,112250.0,0.40552415]
[1756937267955,0.30919042,112260.0,112250.0,0.40876415]
[1756937268170,0.31120042,112260.0,112250.0,0.40876415]
[1756937271257,0.31120042,112260.0,112250.0,0.40356415]
[1756937271987,0.31120042,112260.0,112250.0,0.24892415]
[1756937272194,0.31120042,112260.0,112250.0,0.40332415]
[1756937272753,0.31120042,112260.0,112250.0,0.40852415]
[1756937273670,0.31120042,112260.0,112250.0,0.40332415]
[1756937273885,0.00235096,112260.0,112250.0,0.40852415]
[1756937274088,0.31120042,112260.0,112250.0,0.40852415]
[1756937276003,0.00034096,112260.0,112250.0,0.40852415]
[1756937276212,0.30919042,112260.0,112250.0,0.40852415]
[1756937277049,0.00034096,112260.0,112250.0,0.40852415]
[1756937277253,0.30919042,112260.0,112250.0,0.40852415]
[1756937277461,0.31120042,112260.0,112250.0,0.40852415]
[1756937277664,0.30919042,112260.0,112250.0,0.40852415]
[1756937278519,0.31120042,112260.0,112250.0,0.40852415]
[1756937279990,0.30919042,112260.0,112250.0,0.40852415]
[1756937280610,0.31120042,112260.0,112250.0,0.40852415]
[1756937280972,0.00034096,112260.0,112250.0,0.40852415]
[1756937281190,0.31120042,112260.0,112250.0,0.40852415]
[1756937283254,0.00235096,112260.0,112250.0,0.40852415]
[1756937283470,0.31120042,112260.0,112250.0,0.40852415]
[1756937284281,0.00235096,112260.0,112250.0,0.40852415]
[1756937284437,0.31120042,112260.0,112250.0,0.40852415]
[1756937285250,0.00235096,112260.0,112250.0,0.40852415]
[1756937285468,0.00034096,112260.0,112250.0,0.79759211]
[1756937285709,0.00034096,112260.0,112250.0,0.48874265]
[1756937286122,0.00034096,112260.0,112250.0,0.79759211]
[1756937286322,0.00034096,112260.0,112250.0,0.82437042]
[1756937286522,0.00034096,112260.0,112250.0,0.51552096]
[1756937286672,0.00034096,112260.0,112250.0,0.82437042]
[1756937287651,0.00034096,112260.0,112250.0,0.82393042]
[1756937288188,0.00034096,112260.0,112250.0,0.66997042]
[1756937288417,0.00034096,112260.0,112250.0,0.82397042]
[1756937289056,0.00034096,112260.0,112250.0,0.66997042]
[1756937289528,0.00034096,112260.0,112250.0,0.82393042]
[1756937291154,0.00034096,112260.0,112250.0,0.51508096]
[1756937291359,0.00034096,112260.0,112250.0,0.82393042]
[1756937293509,0.00034096,112260.0,112250.0,0.86501484]
[1756937298652,0.00034096,112260.0,112250.0,0.97786965]
[1756937299480,0.00034096,112260.0,112250.0,0.98880169]
[1756937299714,0.00034096,112260.0,112250.0,1.29765115]
[1756937300356,0.00034096,112260.0,112250.0,1.40985992]
[1756937301633,0.00034096,112260.0,112250.0,1.29765115]
[1756937302041,0.00034096,112260.0,112250.0,0.98880169]
[1756937302262,0.00034096,112260.0,112250.0,1.29765115]
[1756937303735,0.00034096,112260.0,112250.0,0.89765115]
[1756937305533,0.00034096,112260.0,112250.0,1.00056265]
[1756937305876,0.00034096,112260.0,112250.0,1.11277142]
[1756937306497,0.00034096,112260.0,112250.0,1.51277142]
[1756937307093,0.00034096,112260.0,112250.0,1.35881142]
[1756937307324,0.00034096,112260.0,112250.0,1.51197142]
[1756937308295,0.00034096,112260.0,112250.0,0.94705046]
[1756937308529,0.00034096,112260.0,112250.0,1.51189142]
[1756937315489,0.00034096,112260.0,112250.0,1.35881142]
[1756937315696,0.00034096,112260.0,112250.0,1.51169142]
[1756937316053,0.00034096,112260.0,112250.0,1.51161142]
[1756937319004,0.00034096,112260.0,112250.0,1.51145142]
[1756937319718,0.00034096,112260.0,112250.0,1.35881142]
[1756937319914,0.00233096,112260.0,112250.0,0.94185046]
[1756937320154,0.00233096,112260.0,112250.0,1.09445046]
[1756937320945,0.00233096,112260.0,112250.0,0.69445046]
[1756937321359,0.00233096,112260.0,112250.0,1.09445046]
[1756937321729,0.00233096,112260.0,112250.0,1.09648046]
[1756937321932,0.00233096,112260.0,112250.0,1.09967046]
[1756937323351,0.00233096,112260.0,112250.0,1.09963046]
[1756937326352,0.00233096,112260.0,112250.0,0.94707046]
[1756937326610,0.00233096,112260.0,112250.0,0.54031123]
[1756937326810,0.00233096,112260.0,112250.0,0.42810246]
[1756937330055,0.00233096,112260.0,112250.0,0.54031123]
[1756937330685,0.00233096,112260.0,112250.0,0.54553123]
[1756937331331,0.00034096,112260.0,112250.0,0.54553123]
[1756937331543,0.00034096,112260.0,112250.0,0.95729219]
[1756937332478,0.00034096,112260.0,112250.0,0.54553123]
[1756937333295,0.00034096,112260.0,112250.0,0.95729219]
[1756937335223,0.00034096,112260.0,112250.0,1.35729219]
[1756937338469,0.00034096,112260.0,112250.0,1.470147]
[1756937344674,0.00034096,112260.0,112250.0,1.05838604]
[1756937345156,0.00034096,112260.0,112250.0,1.470147]
[1756937345560,0.00034096,112260.0,112250.0,1.317747]
[1756937345766,0.00034096,112260.0,112250.0,1.470027]
[1756937345969,0.00034096,112260.0,112250.0,1.05826604]
[1756937346195,0.00034096,112260.0,112250.0,1.470027]
[1756937355006,0.00034096,112260.0,112250.0,1.810027]
[1756937355218,1e-08,112260.0,112250.0,1.69781823]
[1756937355429,1e-08,112260.0,112250.0,1.28605727]
[1756937355642,1e-08,112260.0,112250.0,1.69781823]
[1756937356106,1e-08,112260.0,112250.0,1.28601727]
[1756937356322,1e-08,112260.0,112250.0,1.54553823]
[1756937356563,1e-08,112260.0,112250.0,1.69777823]
[1756937358356,1e-08,112260.0,112250.0,1.54553823]
[1756937358911,1e-08,112260.0,112250.0,1.69777823]
[1756937359734,1e-08,112260.0,112250.0,1.54553823]
[1756937359902,1e-08,112260.0,112250.0,1.69777823]
[1756937361164,1e-08,112260.0,112250.0,1.54553823]
[1756937361381,1e-08,112260.0,112250.0,1.69777823]
[1756937365945,1e-08,112260.0,112250.0,1.54553823]
[1756937366348,1e-08,112260.0,112250.0,1.69777823]
[1756937367168,0.00207001,112260.0,112250.0,1.54553823]
[1756937367431,0.00207001,112260.0,112250.0,1.54031823]
[1756937367647,0.00207001,112260.0,112250.0,1.58956936]
[1756937367858,0.00207001,112260.0,112250.0,1.59450936]
[1756937368295,0.00207001,112260.0,112250.0,1.44230936]
[1756937368512,0.00207001,112260.0,112250.0,1.28075727]
[1756937368694,0.00207001,112260.0,112250.0,1.58956936]
[1756937371048,0.00207001,112260.0,112250.0,1.59450936]
[1756937371747,1e-08,112260.0,112250.0,1.59450936]
[1756937372444,1e-08,112260.0,112250.0,1.28569727]
[1756937372596,1e-08,112260.0,112250.0,1.59450936]
[1756937373665,1e-08,112260.0,112250.0,1.28569727]
[1756937373865,1e-08,112260.0,112250.0,1.59450936]
[1756937374723,1e-08,112260.0,112250.0,1.90332145]
[1756937375430,1e-08,112260.0,112250.0,1.28569727]
[1756937375653,1e-08,112260.0,112250.0,1.59450936]
[1756937380259,0.0002,112270.0,112260.0,0.19909666]
[1756937380395,0.0002,112270.0,112260.0,0.8644666]
[1756937380605,0.00226,112270.0,112260.0,0.8644666]
[1756937380844,0.00226,112270.0,112260.0,0.89124121]
[1756937381286,0.00326,112270.0,112260.0,0.89124121]
[1756937382240,0.00326,112270.0,112260.0,0.89429121]
[1756937382563,0.00326,112270.0,112260.0,0.89748121]
[1756937382763,0.00326,112270.0,112260.0,1.2062933]
[1756937382999,0.0012,112270.0,112260.0,1.2062933]
[1756937384051,0.0012,112270.0,112260.0,1.6062933]
[1756937384423,0.00321,112270.0,112260.0,1.6062933]
[1756937385246,0.00321,112270.0,112260.0,1.29224121]
[1756937385421,0.00321,112270.0,112260.0,1.30132779]
[1756937385633,0.00321,112270.0,112260.0,0.90132779]
[1756937385939,0.00321,112270.0,112260.0,0.90656779]
[1756937386663,0.00321,112270.0,112260.0,0.5977557]
[1756937387006,0.00321,112270.0,112260.0,0.90656779]
[1756937391254,0.0012,112270.0,112260.0,1.21537988]
[1756937391488,0.0012,112270.0,112260.0,1.21537987]
[1756937392338,0.0012,112270.0,112260.0,1.61537987]
[1756937394804,0.0012,112270.0,112260.0,1.61533987]
[1756937395009,0.0012,112270.0,112260.0,1.82933987]
[1756937395579,0.0012,112270.0,112260.0,1.67721987]
[1756937395821,0.00321,112270.0,112260.0,1.21171569]
[1756937396021,0.0012,112270.0,112260.0,1.82933987]
[1756937396857,0.00321,112270.0,112260.0,1.82929987]
[1756937397298,0.0012,112270.0,112260.0,1.82929987]
[1756937397503,0.00111903,112270.0,112260.0,1.82929987]
[1756937397712,0.00304809,112270.0,112260.0,1.36840778]
[1756937397891,0.00304809,112270.0,112260.0,1.51729778]
[1756937398034,0.00304809,112270.0,112260.0,1.36521778]
[1756937398244,0.00304809,112270.0,112260.0,1.51524778]
[1756937399115,0.00304809,112270.0,112260.0,1.20643569]
[1756937399324,0.00304809,112270.0,112260.0,1.05435569]
[1756937399579,0.31503018,112270.0,112260.0,0.6844943]
[1756937399778,0.31503018,112270.0,112260.0,0.62569507]
[1756937400201,0.00621809,112270.0,112260.0,0.62569507]
[1756937400408,0.00621809,112270.0,112260.0,0.47361507]
[1756937400616,0.00621809,112270.0,112260.0,0.62569507]
[1756937401591,0.49317215,112270.0,112260.0,0.47361507]
[1756937401805,0.00621809,112270.0,112260.0,0.62569507]
[1756937402466,0.31503018,112270.0,112260.0,0.62569507]
[1756937402680,0.31503018,112270.0,112260.0,0.47361507]
[1756937402898,0.31503018,112270.0,112260.0,0.62569507]
[1756937403949,0.49317215,112270.0,112260.0,0.25961507]
[1756937404390,0.31503018,112270.0,112260.0,0.41169507]
[1756937405156,0.49317215,112270.0,112260.0,0.25961507]
[1756937405359,0.49317215,112270.0,112260.0,0.33150827]
[1756937406070,0.31503018,112270.0,112260.0,0.17942827]
[1756937406357,0.31503018,112270.0,112260.0,0.33146827]
[1756937406607,0.00304809,112270.0,112260.0,0.33146827]
[1756937406845,0.00527456,112270.0,112260.0,0.33146827]
[1756937407548,0.31408665,112270.0,112260.0,0.33146827]
[1756937407761,0.00304809,112270.0,112260.0,0.33146827]
[1756937407963,0.00304809,112270.0,112260.0,0.33351827]
[1756937407964,0.00527456,112270.0,112260.0,0.33351827]
[1756937408702,0.00527456,112270.0,112260.0,0.33670827]
[1756937409861,0.00524456,112270.0,112260.0,0.33670827]
[1756937410059,0.00524456,112270.0,112260.0,0.33652827]
[1756937415305,0.00326456,112270.0,112260.0,0.33652827]
[1756937419734,0.00326456,112270.0,112260.0,0.64534036]
[1756937420168,0.00326456,112270.0,112260.0,0.33652827]
[1756937420375,0.00326456,112270.0,112260.0,0.64534036]
[1756937421339,0.00103809,112270.0,112260.0,0.64534036]
[1756937421771,0.00103809,112270.0,112260.0,0.33652827]
[1756937421982,0.00103809,112270.0,112260.0,0.64534036]
[1756937422297,0.00103809,112270.0,112260.0,0.33652827]
[1756937422511,0.00103809,112270.0,112260.0,0.64534036]
[1756937424506,0.00103809,112270.0,112260.0,0.64506915]
[1756937427509,0.00326456,112270.0,112260.0,0.41644386]
[1756937430224,0.00524456,112270.0,112260.0,0.41644386]
[1756937430436,0.18338653,112270.0,112260.0,0.26440386]
[1756937430646,0.5961491,112270.0,112260.0,0.41130386]
[1756937430859,0.00301809,112270.0,112260.0,0.41130386]
[1756937431070,0.00524456,112270.0,112260.0,0.41130386]
[1756937431462,0.00524456,112270.0,112260.0,0.41636386]
[1756937433938,0.00326456,112270.0,112260.0,0.41636386]
[1756937445070,0.00291005,112270.0,112260.0,0.41636386]
[1756937448622,0.00068358,112270.0,112260.0,0.41636386]
[1756937449516,0.00068358,112270.0,112260.0,0.48484386]
[1756937449727,0.00291005,112270.0,112260.0,0.48484386]
[1756937449933,0.00068358,112270.0,112260.0,0.48484386]
[1756937450086,0.00068358,112270.0,112260.0,0.48484385]
[1756937450452,0.00291005,112270.0,112260.0,0.48484385]
[1756937452276,0.00068358,112270.0,112260.0,0.48484385]
[1756937453327,0.00068358,112270.0,112260.0,0.89663289]
[1756937453537,0.00068358,112270.0,112260.0,1.0094877]
[1756937453959,0.00068358,112270.0,112260.0,1.03626279]
[1756937455556,0.00068358,112270.0,112260.0,0.88430279]
[1756937455770,0.00068358,112270.0,112260.0,1.03614279]
[1756937456204,0.00068358,112270.0,112260.0,0.88430279]
[1756937456392,0.00266358,112270.0,112260.0,0.62435375]
[1756937456789,0.00068358,112270.0,112260.0,0.62435375]
[1756937457253,0.00068358,112270.0,112260.0,1.03614279]
[1756937460359,0.00068358,112270.0,112260.0,0.62435375]
[1756937460549,0.00068358,112270.0,112260.0,1.03614279]
[1756937460759,0.00068358,112270.0,112260.0,0.47251375]
[1756937460982,0.00266358,112270.0,112260.0,0.51145894]
[1756937461214,0.00266358,112270.0,112260.0,0.48468385]
[1756937461440,0.00266358,112270.0,112260.0,0.39943705]
[1756937462086,0.00266358,112270.0,112260.0,0.40459705]
[1756937462874,0.00266358,112270.0,112260.0,0.40147705]
[1756937463096,0.18303202,112270.0,112260.0,0.39943705]
[1756937463280,0.18080555,112270.0,112260.0,0.39943705]
[1756937463649,0.00266358,112270.0,112260.0,0.39943705]
[1756937464719,0.00068358,112270.0,112260.0,0.40459705]
[1756937465064,0.00068358,112270.0,112260.0,0.48478385]
[1756937467009,0.00068358,112270.0,112260.0,0.51156133]
[1756937468034,0.00068358,112270.0,112260.0,0.92335037]
[1756937468644,0.00068358,112270.0,112260.0,0.51156133]
[1756937468805,0.00068358,112270.0,112260.0,0.92335037]
[1756937474790,0.00068358,112270.0,112260.0,0.51156133]
[1756937474999,0.00068358,112270.0,112260.0,0.35976133]
[1756937475230,0.00068358,112270.0,112260.0,0.51148133]
[1756937477094,0.00273358,112270.0,112260.0,0.51148133]
[1756937478301,0.00068358,112270.0,112260.0,0.51148133]
[1756937483980,0.00496005,112270.0,112260.0,0.35460133]
[1756937484193,0.00808005,112270.0,112260.0,0.47950385]
[1756937484415,0.00496005,112270.0,112260.0,0.47950385]
[1756937485686,0.00496005,112270.0,112260.0,0.48459385]
[1756937485687,0.00291005,112270.0,112260.0,0.48459385]
[1756937486093,0.00068358,112270.0,112260.0,0.48459385]
[1756937486531,0.00068358,112270.0,112260.0,0.33291385]
[1756937486717,0.00068358,112270.0,112260.0,0.48459385]
[1756937487128,0.00291005,112270.0,112260.0,0.48459385]
[1756937489544,0.00291005,112270.0,112260.0,0.79341629]
[1756937497913,0.00291005,112270.0,112260.0,0.48459385]
[1756937498121,0.00291005,112270.0,112260.0,0.79341629]
[1756937499756,0.00291005,112270.0,112260.0,0.48459385]
[1756937499959,0.00291005,112270.0,112260.0,0.79341629]
[1756937501199,0.00291005,112270.0,112260.0,0.48459385]
[1756937501404,0.00291005,112270.0,112260.0,0.79341629]
[1756937505532,0.00291005,112270.0,112260.0,0.48459385]
[1756937505865,0.00291005,112270.0,112260.0,0.79341629]
[1756937506866,0.00068358,112270.0,112260.0,0.79341629]
[1756937508117,0.00291005,112270.0,112260.0,0.79341629]
[1756937512323,0.00068358,112270.0,112260.0,0.79341629]
[1756937512927,0.00291005,112270.0,112260.0,0.79341629]
[1756937514328,0.00068358,112270.0,112260.0,0.79341629]
[1756937514542,0.00291005,112270.0,112260.0,0.79341629]
[1756937516754,0.00068358,112270.0,112260.0,1.10223873]
[1756937517218,0.00068358,112270.0,112260.0,1.12901494]
[1756937520486,0.00068358,112270.0,112260.0,0.97733494]
[1756937520699,0.00068358,112270.0,112260.0,1.12881494]
[1756937521325,0.00068358,112270.0,112260.0,0.97733494]
[1756937521473,0.00068358,112270.0,112260.0,1.12877494]
[1756937524372,0.00068358,112270.0,112260.0,0.97733494]
[1756937524836,0.00068358,112270.0,112260.0,1.12877494]
[1756937525003,0.00068358,112270.0,112260.0,0.97733494]
[1756937525408,0.00068358,112270.0,112260.0,1.12877494]
[1756937526256,0.00068358,112270.0,112260.0,0.8199525]
[1756937526910,0.00068358,112270.0,112260.0,0.6685125]
[1756937527147,0.00068358,112270.0,112260.0,0.8199525]
[1756937527730,0.00068358,112270.0,112260.0,0.6685125]
[1756937527938,0.00068358,112270.0,112260.0,0.8199125]
[1756937529381,0.00068358,112270.0,112260.0,1.24158975]
[1756937529799,0.00068358,112270.0,112260.0,1.27361437]
[1756937531676,0.00068358,112270.0,112260.0,1.16140295]
[1756937531881,0.00068358,112270.0,112260.0,1.56140295]
[1756937532972,0.00068358,112270.0,112260.0,1.77544295]
[1756937533190,0.00068358,112270.0,112260.0,1.81557656]
[1756937533392,0.00068358,112270.0,112260.0,1.92778798]
[1756937534649,0.00068358,112270.0,112260.0,1.81557656]
[1756937535074,0.00068358,112270.0,112260.0,2.23661042]
[1756937535280,0.00068358,112270.0,112260.0,1.92778798]
[1756937537321,0.00068358,112270.0,112260.0,1.81557656]
[1756937539621,0.00068358,112270.0,112260.0,1.66417656]
[1756937539818,0.00068358,112270.0,112260.0,1.81549656]
[1756937545341,0.00068358,112270.0,112260.0,2.124319]
[1756937545746,0.00068358,112270.0,112260.0,1.81549656]
[1756937546162,0.00068358,112270.0,112260.0,1.66417656]
[1756937546421,0.00068358,112270.0,112260.0,1.92766798]
[1756937549509,0.00068358,112270.0,112260.0,1.721618]
[1756937557776,0.00068358,112270.0,112260.0,1.570338]
[1756937558227,0.00068358,112270.0,112260.0,1.3099431]
[1756937558445,0.00068358,112270.0,112260.0,1.570338]
[1756937558713,0.00068358,112270.0,112260.0,1.72153799]
[1756937560416,0.00068358,112270.0,112260.0,1.30990309]
[1756937560646,0.00068358,112270.0,112260.0,1.72149799]
[1756937570127,0.00068358,112270.0,112260.0,1.30990309]
[1756937570319,0.00068358,112270.0,112260.0,1.72149799]
[1756937594167,0.00562358,112270.0,112260.0,1.11351948]
[1756937594421,0.00562358,112270.0,112260.0,1.67603438]
[1756937594764,0.00267358,112270.0,112260.0,1.67603438]
[1756937596512,0.00267358,112270.0,112260.0,1.26443948]
[1756937596745,0.00068358,112270.0,112260.0,1.68107438]
[1756937605907,0.00267358,112270.0,112260.0,1.68099438]
[1756937606367,0.00068358,112270.0,112260.0,1.68099438]
[1756937610462,0.00068358,112270.0,112260.0,1.53015438]
[1756937610667,0.00267358,112270.0,112260.0,1.68099438]
[1756937610870,0.00267358,112270.0,112260.0,1.26935948]
[1756937611075,0.00068358,112270.0,112260.0,1.68095438]
[1756937611293,0.00267358,112270.0,112260.0,1.68095438]
[1756937611513,0.00267358,112270.0,112260.0,1.88686038]
[1756937612453,0.00267358,112270.0,112260.0,1.73102038]
[1756937612664,0.00267358,112270.0,112260.0,1.88182038]
[1756937613103,0.00267358,112270.0,112260.0,1.88686038]
[1756937614919,0.00068358,112270.0,112260.0,1.88686038]
[1756937626472,0.00068358,112270.0,112260.0,1.73606038]
[1756937626783,0.00068358,112270.0,112260.0,1.88678038]
[1756937626992,0.00068358,112270.0,112260.0,1.73606038]
[1756937627136,0.00068358,112270.0,112260.0,1.88678038]
[1756937628853,0.00068358,112270.0,112260.0,1.73606038]
[1756937629039,0.00068358,112270.0,112260.0,1.88678038]
[1756937629243,0.00279358,112270.0,112260.0,1.73606038]
[1756937629498,0.00279358,112270.0,112260.0,1.26622948]
[1756937629711,0.00279358,112270.0,112260.0,1.88373038]
[1756937629850,0.00279358,112270.0,112260.0,1.88667038]
[1756937630894,0.00279358,112270.0,112260.0,1.11848948]
[1756937631124,0.00279358,112270.0,112260.0,1.88667038]
[1756937632010,0.00068358,112270.0,112260.0,1.88667038]
[1756937635710,0.00068358,112270.0,112260.0,1.73599038]
[1756937635916,0.00068358,112270.0,112260.0,1.88663038]
[1756937640425,0.00581358,112270.0,112260.0,1.17224349]
[1756937640649,0.18395555,112270.0,112260.0,0.38662467]
[1756937640881,0.55297421,112270.0,112260.0,0.18169062]
[1756937641099,0.20799555,112270.0,112260.0,0.2204792]
[1756937641316,0.516746,112270.0,112260.0,0.2204792]
[1756937641528,0.54352635,112270.0,112260.0,0.2204792]
[1756937644106,0.2347759,112270.0,112260.0,0.2204792]
[1756937644319,0.54352635,112270.0,112260.0,0.2204792]
[1756937645556,0.2347759,112270.0,112260.0,0.2204792]
[1756937645765,0.54352635,112270.0,112260.0,0.2204792]
[1756937646758,0.516746,112270.0,112260.0,0.2204792]
[1756937650090,0.5256955,112270.0,112260.0,0.2204792]
[1756937650306,0.5256955,112270.0,112260.0,0.2202392]
[1756937650721,0.30886104,112270.0,112260.0,0.2202392]
[1756937650922,0.61761149,112270.0,112260.0,0.2202392]
[1756937653627,0.60866199,112270.0,112260.0,0.2202392]
[1756937655184,0.61749889,112270.0,112260.0,0.2202392]
[1756937659291,0.61749889,112270.0,112260.0,0.2201592]
[1756937660288,0.59043889,112270.0,112260.0,0.2201592]
[1756937661780,0.59350889,112270.0,112260.0,0.2201592]
[1756937663496,0.59350889,112270.0,112260.0,0.0694792]
[1756937663704,0.6329022,112270.0,112260.0,0.2201592]
[1756937663920,0.59350889,112270.0,112260.0,0.2201592]
[1756937664127,0.62029182,112270.0,112260.0,0.2201592]
[1756937665095,0.62029182,112270.0,112260.0,0.0694792]
[1756937665292,0.62029182,112270.0,112260.0,0.2201592]
[1756937665701,0.66867164,112270.0,112260.0,0.2201592]
[1756937665920,0.70869734,112270.0,112260.0,0.2201592]
[1756937666301,0.70562734,112270.0,112260.0,0.2201592]
[1756937666891,0.21444538,112270.0,112260.0,0.71208749]
[1756937667160,0.17882555,112270.0,112260.0,0.71208749]
[1756937667368,0.18105202,112270.0,112260.0,0.40333704]
[1756937668233,0.00291005,112270.0,112260.0,0.71208749]
[1756937668432,0.00068358,112270.0,112260.0,0.71208749]
[1756937670203,0.00068358,112270.0,112260.0,0.40333704]
[1756937670403,0.00068358,112270.0,112260.0,0.71208749]
[1756937670817,0.17882555,112270.0,112260.0,0.71208749]
[1756937671423,0.00068358,112270.0,112260.0,0.71208749]
[1756937671650,0.00068358,112270.0,112260.0,0.40333704]
[1756937676861,0.17882555,112270.0,112260.0,0.40333704]
[1756937678523,0.00068358,112270.0,112260.0,0.40333704]
[1756937681204,0.00073053,112270.0,112260.0,0.40333704]
[1756937682679,0.00073053,112270.0,112260.0,0.81512102]
[1756937697486,0.00073053,112270.0,112260.0,0.81503971]
[1756937698754,0.00073053,112270.0,112260.0,0.40325573]
[1756937698955,0.00073053,112270.0,112260.0,0.81503971]
[1756937700895,0.00073053,112270.0,112260.0,0.40325573]
[1756937701098,0.00073053,112270.0,112260.0,0.81503971]
[1756937701605,0.00073053,112270.0,112260.0,0.66435971]
[1756937701726,0.00073053,112270.0,112260.0,0.81495971]
[1756937702139,0.00287053,112270.0,112260.0,0.81491971]
[1756937702345,0.00287053,112270.0,112260.0,0.39811573]
[1756937702813,0.00287053,112270.0,112260.0,0.40333573]
[1756937703040,0.00287053,112270.0,112260.0,0.25277573]
[1756937703271,0.00287053,112270.0,112260.0,0.40333573]
[1756937703598,0.00287053,112270.0,112260.0,0.81511971]
[1756937704034,0.00073053,112270.0,112260.0,0.81511971]
[1756937704233,0.00073053,112270.0,112260.0,0.25277573]
[1756937704439,0.00073053,112270.0,112260.0,0.81511971]
[1756937704888,0.00073053,112270.0,112260.0,0.40333573]
[1756937705122,0.00073053,112270.0,112260.0,0.81511971]
[1756937705884,0.00073053,112270.0,112260.0,0.66455971]
[1756937706087,0.00073053,112270.0,112260.0,0.81511971]
[1756937706298,0.00073053,112270.0,112260.0,0.66455971]
[1756937706505,0.00287053,112270.0,112260.0,0.66455971]
[1756937706734,0.00287053,112270.0,112260.0,0.66130971]
[1756937706937,0.59796295,112270.0,112260.0,0.21995789]
[1756937707165,0.62251492,112270.0,112260.0,0.21995789]
[1756937707759,0.62251492,112270.0,112260.0,0.39811573]
[1756937707962,0.21073094,112270.0,112260.0,0.21995789]
[1756937708446,0.21073094,112270.0,112260.0,0.39811573]
[1756937708842,0.21073094,112270.0,112260.0,0.21995789]
[1756937709206,0.21073094,112270.0,112260.0,0.39811573]
[1756937709968,0.21073094,112270.0,112260.0,0.24755573]
[1756937710227,0.21073094,112270.0,112260.0,0.39811573]
[1756937710438,0.20779094,112270.0,112260.0,0.39811573]
[1756937711411,0.02750897,112270.0,112260.0,0.40320573]
[1756937711637,0.03169544,112270.0,112260.0,0.40320573]
[1756937711851,0.20983741,112270.0,112260.0,0.40320573]
[1756937712067,0.20761094,112270.0,112260.0,0.40320573]
[1756937712294,0.20761094,112270.0,112260.0,0.25264573]
[1756937712512,0.02946897,112270.0,112260.0,0.40320573]
[1756937712713,0.20983741,112270.0,112260.0,0.40320573]
[1756937712923,0.20761094,112270.0,112260.0,0.40320573]
[1756937714029,0.02750897,112270.0,112260.0,0.40320573]
[1756937714289,0.02973544,112270.0,112260.0,0.40320573]
[1756937714503,0.20787741,112270.0,112260.0,0.40320573]
[1756937714723,0.20565094,112270.0,112260.0,0.40320573]
[1756937714952,0.20761094,112270.0,112260.0,0.40320573]
[1756937716010,0.20761094,112270.0,112260.0,0.39811573]
[1756937717062,0.20565094,112270.0,112260.0,0.40320573]
[1756937717507,0.02750897,112270.0,112260.0,0.40320573]
[1756937717735,0.20983741,112270.0,112260.0,0.40320573]
[1756937717942,0.20761094,112270.0,112260.0,0.40320573]
[1756937719686,0.02946897,112270.0,112260.0,0.40320573]
[1756937719900,0.03169544,112270.0,112260.0,0.40320573]
[1756937720421,0.20983741,112270.0,112260.0,0.40320573]
[1756937720562,0.20761094,112270.0,112260.0,0.40320573]
[1756937722196,0.02946897,112270.0,112260.0,0.40320573]
[1756937722470,0.20983741,112270.0,112260.0,0.40320573]
[1756937722686,0.02946897,112270.0,112260.0,0.40320573]
[1756937722893,0.03169544,112270.0,112260.0,0.40320573]
[1756937723108,0.02973544,112270.0,112260.0,0.40320573]
[1756937724418,0.20787741,112270.0,112260.0,0.40320573]
[1756937724653,0.20565094,112270.0,112260.0,0.40320573]